bitfinex/quotes_ETHUSD_20260107
["timestamp","ask_amount","ask_price","bid_price","bid_amount"]
[1767819195193,0.97981363,3140.7,3140.2,1.01e-06]
[1767819197396,0.97981363,3140.5,3140.2,1.01e-06]
[1767819199715,4.16406823,3140.5,3140.2,1.01e-06]
[1767819200601,0.95517066,3140.7,3140.2,1.01e-06]
[1767819200602,4.13922008,3140.7,3140.2,1.01e-06]
[1767819201000,3.18557811,3141.2,3140.4,0.92138434]
[1767819201001,0.002,3141.2,3140.4,0.92138434]
[1767819201308,0.002,3141.2,3140.2,1.01e-06]
[1767819201309,0.97981363,3141.6,3140.5,0.836]
[1767819201532,0.97981363,3141.4,3140.5,1.75738434]
[1767819201707,0.97981363,3141.4,3140.6,1.09712277]
[1767819201914,4.1631634,3141.4,3140.6,1.09712277]
[1767819202403,0.97981363,3141.3,3140.6,0.17573843]
[1767819202612,0.97981363,3141.3,3140.5,0.836]
[1767819202613,0.97981363,3141.3,3140.2,1.01e-06]
[1767819203109,0.97981363,3141.3,3140.2,3.18450845]
[1767819203425,0.97981363,3141.3,3140.2,1.01e-06]
[1767819203928,0.97981363,3141.3,3140.2,3.18449644]
[1767819204129,0.97981363,3141.1,3140.2,3.18449644]
[1767819204328,0.97981363,3141.1,3140.2,3.99715516]
[1767819204523,0.97981363,3141.1,3140.2,0.81265973]
[1767819204723,0.97981363,3141.1,3140.2,1.01e-06]
[1767819205634,4.16351308,3141.0,3140.5,0.001]
[1767819205927,0.97981363,3140.9,3140.5,0.001]
[1767819207934,4.1636529,3140.9,3140.5,0.001]
[1767819208129,0.97981363,3140.8,3140.5,0.001]
[1767819210250,0.97981363,3140.9,3140.5,0.001]
[1767819210544,0.97981363,3140.7,3140.5,1.01e-06]
[1767819210747,0.97981363,3140.7,3139.5,0.92138434]
[1767819211041,0.97981363,3140.7,3139.1,0.002]
[1767819211042,0.97981363,3140.7,3139.4,0.838]
[1767819211453,0.97981363,3140.7,3139.4,4.02324987]
[1767819211610,0.97981363,3140.7,3139.5,0.49446342]
[1767819211808,0.97981363,3140.7,3139.5,3.18521576]
[1767819212216,0.90284066,3140.5,3139.5,3.18521576]
[1767819212417,0.90284066,3140.5,3139.4,5.0078]
[1767819213015,0.93484066,3140.5,3139.4,5.0078]
[1767819213725,0.93484066,3140.5,3139.5,0.98451482]
[1767819213726,0.032,3140.5,3139.5,0.98451482]
[1767819213916,0.032,3140.5,3139.7,0.98451482]
[1767819214247,0.93484066,3140.5,3139.6,1.6553122]
[1767819215081,0.90284066,3140.3,3139.6,1.6553122]
[1767819215414,0.90284066,3140.3,3139.6,0.836]
[1767819217061,0.90284066,3140.3,3139.6,4.02104897]
[1767819217574,0.90284066,3140.3,3139.6,0.836]
[1767819218062,0.90284066,3140.3,3139.6,4.02109466]
[1767819218672,0.90284066,3140.3,3139.6,0.836]
[1767819218890,0.90284066,3140.3,3139.6,4.74193602]
[1767819219919,3.18430839,3140.4,3139.7,0.98451482]
[1767819220168,3.18430839,3140.4,3139.9,0.002]
[1767819220322,4.11908084,3140.5,3139.9,0.002]
[1767819222540,4.11905437,3140.5,3139.9,0.002]
[1767819223472,0.93484066,3140.5,3139.9,0.002]
[1767819223633,0.93484066,3140.5,3139.9,0.41915294]
[1767819223833,4.11907146,3140.5,3139.9,0.41915294]
[1767819224236,0.90284066,3140.4,3139.9,0.002]
[1767819224586,0.90284066,3140.4,3139.6,0.836]
[1767819225254,0.90284066,3140.4,3139.6,4.02111374]
[1767819225450,0.90284066,3140.4,3139.7,3.18501593]
[1767819225663,0.90284066,3140.4,3139.7,4.16953075]
[1767819225866,0.90284066,3140.4,3139.8,0.50055308]
[1767819226864,0.032,3140.5,3139.9,0.98451482]
[1767819228082,0.93484066,3140.5,3139.8,3.6854666]
[1767819229059,0.93484066,3140.5,3139.8,4.66998142]
[1767819229556,0.93484066,3140.5,3139.9,0.98451482]
[1767819229946,0.93484066,3140.5,3139.8,0.50055308]
[1767819230212,0.93484066,3140.5,3139.9,0.46699957]
[1767819233176,0.93484066,3140.5,3139.9,0.46899957]
[1767819233585,0.001,3140.2,3139.9,0.46899957]
[1767819234487,0.001,3140.2,3140.0,0.98451482]
[1767819235387,0.00567359,3469.0,3140.1,1.84927605]
[1767819235388,0.90284066,3141.7,3140.1,1.84927605]
[1767819235593,0.90284066,3141.6,3140.2,1.16944243]
[1767819235972,0.90284066,3141.6,3140.4,0.98451482]
[1767819238070,0.90284066,3141.4,3140.6,0.98451482]
[1767819238271,0.90284066,3141.4,3140.6,2.23738694]
[1767819240178,0.90284066,3141.3,3140.6,2.23738694]
[1767819240378,0.90284066,3141.3,3140.6,1.25287212]
[1767819240689,0.90284066,3141.3,3140.2,4.02045729]
[1767819241769,0.90284066,3141.3,3140.0,0.98451482]
[1767819241965,0.90284066,3141.3,3139.5,3.18714947]
[1767819241966,0.94784202,3141.1,3139.8,0.91058857]
[1767819242171,0.94784202,3141.1,3139.5,0.002]
[1767819242172,0.94784202,3140.7,3139.7,4.02100367]
[1767819242507,0.94784202,3140.7,3139.7,0.836]
[1767819242897,0.94784202,3140.7,3139.7,4.93156363]
[1767819244303,0.94784202,3140.5,3139.7,0.91058857]
[1767819244467,0.94784202,3140.5,3139.7,4.93160438]
[1767819248012,0.94784202,3140.5,3139.8,0.91058857]
[1767819248976,0.94784202,3140.8,3140.0,0.91058857]
[1767819250311,0.94884202,3141.0,3140.0,0.91058857]
[1767819250807,4.13258586,3141.0,3140.0,0.91058857]
[1767819251105,0.94784202,3140.9,3140.2,0.91058857]
[1767819251408,0.94784202,3140.9,3140.3,1.32010862]
[1767819251608,0.001,3141.0,3140.4,0.91058857]
[1767819252416,0.94884202,3141.0,3140.4,0.91058857]
[1767819252786,0.001,3141.0,3140.4,0.91058857]
[1767819253708,0.001,3141.0,3140.4,4.09484805]
[1767819253890,0.94884202,3141.0,3140.4,0.91058857]
[1767819254092,0.94884202,3141.0,3140.3,0.40952005]
[1767819254304,0.94884202,3141.0,3140.3,3.59390165]
[1767819256711,0.94884202,3141.0,3140.4,0.85249897]
[1767819257998,0.001,3140.7,3140.4,0.85249897]
[1767819258319,0.94884202,3140.7,3140.3,0.40952005]
[1767819258815,0.001,3140.7,3140.3,0.40952005]
[1767819258989,0.001,3140.7,3140.3,3.59390365]
[1767819259687,0.001,3140.7,3140.3,4.50449222]
[1767819263424,0.001,3140.7,3140.3,3.59390365]
[1767819263607,0.94884202,3140.7,3140.3,0.40952005]
[1767819263923,0.94884202,3140.7,3140.2,4.02248897]
[1767819263924,0.94884202,3140.7,3140.2,0.838]
[1767819264128,0.98084202,3140.7,3139.9,0.002]
[1767819264434,0.94784202,3140.5,3139.9,0.002]
[1767819265904,0.94784202,3140.3,3139.9,0.002]
[1767819266132,0.94784202,3140.2,3139.9,0.002]
[1767819267915,0.94784202,3140.2,3139.5,4.09777348]
[1767819267916,0.94784202,3140.2,3139.5,0.838]
[1767819268425,0.94784202,3140.2,3139.5,1.74858857]
[1767819270534,4.13236475,3140.2,3139.5,1.74858857]
[1767819270841,0.94784202,3140.2,3139.5,1.74858857]
[1767819271026,0.94784202,3140.2,3139.5,4.93377831]
[1767819271856,0.94784202,3140.2,3139.5,1.74858857]
[1767819272057,0.99790048,3140.1,3139.5,0.838]
[1767819272454,0.99790048,3140.1,3139.5,4.02320813]
[1767819272649,0.99790048,3140.1,3139.5,0.838]
[1767819272975,0.99790048,3140.1,3139.5,4.93583461]
[1767819278369,0.99790048,3140.1,3139.5,1.75065824]
[1767819278558,0.99790048,3140.1,3139.5,4.93585666]
[1767819279438,0.99790048,3140.1,3139.5,0.002]
[1767819279739,0.99790048,3140.0,3139.5,0.002]
[1767819279943,3.18462387,3140.1,3139.5,0.002]
[1767819279944,0.99790048,3139.8,3139.5,0.002]
[1767819280152,0.99790048,3140.0,3139.1,3.1875937]
[1767819280361,0.99790048,3140.0,3139.1,0.91465824]
[1767819280677,0.99790048,3140.0,3139.1,0.002]
[1767819280836,0.99790048,3139.8,3139.0,0.002]
[1767819281470,0.99790048,3139.8,3139.0,0.91465824]
[1767819281666,0.99790048,3139.7,3139.0,0.91465824]
[1767819281866,0.99790048,3139.7,3139.0,0.002]
[1767819282071,0.99790048,3139.6,3139.0,0.002]
[1767819283173,0.99790048,3139.6,3139.5,0.002]
[1767819283369,0.99790048,3139.6,3139.0,0.002]
[1767819285277,1.02990048,3139.6,3139.0,0.002]
[1767819285576,0.99790048,3139.5,3139.0,0.002]
[1767819285874,0.99790048,3139.4,3139.0,0.002]
[1767819286675,0.99790048,3139.4,3138.8,0.002]
[1767819289367,0.99790048,3139.3,3138.8,0.002]
[1767819290366,0.99790048,3139.5,3138.7,0.002]
[1767819290708,0.99790048,3139.3,3138.7,0.002]
[1767819291500,0.99790048,3139.3,3138.7,0.54026148]
[1767819291706,0.99790048,3139.5,3138.7,0.54026148]
[1767819292591,0.99790048,3139.5,3138.8,3.18593092]
[1767819292791,0.99790048,3139.5,3138.7,0.54026148]
[1767819293178,0.99790048,3139.4,3138.7,0.54026148]
[1767819293506,0.99790048,3139.4,3138.7,3.72626384]
[1767819293676,1.02990048,3139.6,3138.8,0.53826148]
[1767819294476,0.032,3139.6,3138.8,0.53826148]
[1767819294677,0.032,3139.6,3139.0,0.53826148]
[1767819295204,0.001,3139.3,3139.0,0.53826148]
[1767819295512,0.001,3139.3,3139.1,0.37240909]
[1767819300197,0.001,3139.3,3138.7,0.9130963]
[1767819300198,0.99890048,3139.3,3138.7,0.9130963]
[1767819300390,0.99890048,3139.3,3138.6,0.002]
[1767819300586,0.001,3139.3,3138.8,0.53826148]
[1767819300913,0.99890048,3139.3,3138.7,0.836]
[1767819301713,0.001,3139.3,3138.8,0.53826148]
[1767819303005,0.001,3139.3,3138.8,3.72415165]
[1767819303214,0.99798538,3140.2,3139.0,0.53826148]
[1767819304128,0.99798538,3140.2,3138.9,0.45601517]
[1767819304427,0.99798538,3140.2,3139.0,0.836]
[1767819305080,9.55322739,3140.3,3139.0,0.836]
[1767819305081,0.99798538,3140.0,3139.0,0.836]
[1767819307019,0.99798538,3140.0,3139.0,1.37426148]
[1767819307207,0.99798538,3139.7,3139.0,1.37426148]
[1767819307408,0.99898538,3139.7,3139.0,1.37426148]
[1767819309135,4.1840999,3139.7,3139.0,1.37426148]
[1767819309418,0.99798538,3139.6,3139.0,1.37426148]
[1767819311509,4.18319125,3139.6,3139.0,1.37426148]
[1767819311829,0.99798538,3139.5,3139.0,1e-08]
[1767819312794,0.99798538,3139.5,3138.9,0.53826148]
[1767819313000,0.99798538,3139.5,3138.9,0.91068703]
[1767819313207,0.99798538,3139.5,3138.9,0.53826148]
[1767819314295,4.18405285,3139.7,3138.9,0.53826148]
[1767819314718,0.99798538,3139.6,3138.9,0.53826148]
[1767819315524,0.001,3139.7,3138.9,0.53826148]
[1767819315705,0.002,3140.4,3139.6,0.53826148]
[1767819315706,4.18246739,3140.3,3139.6,0.53826148]
[1767819316068,1.41643212,3140.2,3139.6,0.53826148]
[1767819316800,0.99798538,3140.2,3139.6,0.53826148]
[1767819317059,4.18434093,3140.4,3139.6,0.53826148]
[1767819317930,0.99798538,3140.3,3139.6,0.53826148]
[1767819319439,0.001,3139.9,3139.6,0.53826148]
[1767819322146,0.99798538,3140.3,3139.7,0.53826148]
[1767819322445,0.99798538,3140.3,3139.5,1.37426148]
[1767819322742,0.99798538,3140.3,3139.5,0.836]
[1767819323739,0.99798538,3140.3,3139.5,1.37426148]
[1767819323943,0.99798538,3140.3,3139.5,4.5594798]
[1767819324643,0.99798538,3140.3,3139.6,0.45594798]
[1767819325743,0.99798538,3140.3,3139.4,0.836]
[1767819326632,6.3706398,3140.4,3139.4,4.02129075]
[1767819326633,0.99798538,3140.1,3139.4,4.02129075]
[1767819326947,0.99798538,3140.1,3139.4,4.55955223]
[1767819328452,0.99798538,3140.3,3139.5,0.53826148]
[1767819328662,0.99798538,3140.3,3139.6,3.18511912]
[1767819329658,0.99798538,3140.2,3139.5,3.72345721]
[1767819329820,0.99798538,3140.2,3139.5,0.53826148]
[1767819330144,0.99798538,3140.2,3139.5,3.7234473]
[1767819330754,0.99798538,3140.1,3139.4,0.836]
[1767819330954,0.99798538,3140.1,3139.4,4.02129321]
[1767819331158,0.99798538,3140.1,3139.7,0.002]
[1767819334154,0.92421378,3140.0,3139.4,0.002]
[1767819334850,4.10895667,3140.0,3139.4,0.002]
[1767819335058,0.92421378,3139.9,3139.4,0.002]
[1767819335625,0.92421378,3140.3,3139.4,0.54026148]
[1767819335827,0.92421378,3140.2,3139.4,0.54026148]
[1767819336270,0.92421378,3140.5,3139.6,0.53826148]
[1767819336925,0.92421378,3140.4,3139.7,0.53826148]
[1767819337575,0.92421378,3140.4,3139.5,4.55946902]
[1767819337862,0.92421378,3140.4,3139.4,0.002]
[1767819337863,0.92421378,3140.3,3139.4,0.002]
[1767819338364,0.92421378,3140.3,3139.4,0.54026148]
[1767819339051,3.18451054,3140.2,3139.4,0.54026148]
[1767819339265,0.92421378,3140.1,3139.4,0.54026148]
[1767819339466,0.92421378,3140.1,3139.4,0.002]
[1767819339645,0.92421378,3139.9,3139.4,0.002]
[1767819340185,0.92421378,3139.8,3139.0,0.002]
[1767819340683,0.92421378,3139.8,3138.4,0.002]
[1767819341188,0.92421378,3139.6,3138.4,0.002]
[1767819341689,0.92421378,3139.4,3138.4,0.002]
[1767819341891,0.92421378,3139.2,3138.4,0.002]
[1767819343146,0.92421378,3139.1,3138.4,0.002]
[1767819344085,0.92421378,3139.3,3138.7,0.002]
[1767819345694,4.10966146,3139.3,3138.7,0.002]
[1767819345981,0.92421378,3139.2,3138.7,0.002]
[1767819346346,8.17054421,3140.4,3139.0,0.54226148]
[1767819346554,0.92421378,3140.4,3139.1,0.00743889]
[1767819346776,0.92421378,3140.4,3139.1,0.836]
[1767819347097,0.92421378,3140.4,3139.1,1.37826148]
[1767819347280,0.92421378,3140.3,3139.2,6.37104994]
[1767819347611,0.92421378,3140.3,3139.3,1.31719262]
[1767819348208,0.95621378,3140.3,3139.3,1.31719262]
[1767819349390,0.92421378,3140.1,3139.3,4.50256942]
[1767819350202,0.92421378,3140.1,3139.3,0.77493114]
[1767819350434,0.92421378,3140.1,3139.1,0.54226148]
[1767819350435,0.92421378,3140.1,3139.2,0.836]
[1767819350940,0.92421378,3140.1,3139.2,4.02150769]
[1767819351241,0.92421378,3140.1,3139.3,3.18540984]
[1767819351444,0.92421378,3140.0,3139.0,3.72791161]
[1767819351609,0.92421378,3140.0,3139.0,6.91363954]
[1767819351816,0.92421378,3140.0,3139.1,0.69136395]
[1767819353345,0.92421378,3140.2,3139.3,3.72768498]
[1767819353523,0.92421378,3140.2,3139.4,0.54226148]
[1767819353915,0.92421378,3140.2,3139.3,3.1854235]
[1767819354238,0.92421378,3140.2,3139.3,4.0214235]
[1767819354416,0.92421378,3140.2,3139.3,4.86548328]
[1767819354616,0.92421378,3140.2,3139.3,1.68005978]
[1767819355325,0.92421378,3140.1,3139.3,4.86547322]
[1767819355627,0.92421378,3139.8,3139.2,0.836]
[1767819356144,0.92421378,3139.8,3139.2,4.02151994]
[1767819356346,0.92421378,3139.8,3139.0,0.836]
[1767819356850,0.92421378,3139.8,3139.1,3.18562314]
[1767819357023,0.92421378,3139.8,3139.1,0.45638846]
[1767819357219,0.92421378,3139.8,3139.1,3.18557095]
[1767819359634,0.92421378,3139.8,3139.1,6.3711974]
[1767819360250,0.92421378,3139.8,3139.1,3.18557095]
[1767819360446,0.001,3139.9,3139.2,0.54226148]
[1767819360653,0.001,3139.9,3139.3,0.69134589]
[1767819361623,0.001,3139.9,3139.3,3.87669567]
[1767819362960,0.96968376,3139.9,3139.3,3.87676198]
[1767819364250,0.96968376,3139.9,3139.3,0.69134589]
[1767819364463,0.96968376,3139.9,3139.3,3.87673033]
[1767819367064,0.001,3139.8,3139.3,3.87673033]
[1767819367232,0.001,3139.8,3139.4,0.44189918]
[1767819367434,0.96968376,3139.8,3139.3,0.69134589]
[1767819367742,0.96968376,3139.8,3139.2,4.021494]
[1767819367943,0.96968376,3139.8,3139.2,0.836]
[1767819368641,0.96968376,3139.8,3139.1,0.836]
[1767819368858,0.96868376,3139.7,3139.1,0.836]
[1767819370352,1.00068376,3139.7,3139.1,0.836]
[1767819371053,1.00068376,3139.7,3139.1,4.02156297]
[1767819371563,1.00068376,3139.7,3139.1,0.836]
[1767819371770,1.00068376,3139.7,3139.0,3.18565277]
[1767819371933,0.96868376,3139.6,3138.7,0.002]
[1767819372929,0.96868376,3139.4,3138.7,0.002]
[1767819376037,0.96868376,3139.3,3138.7,0.002]
[1767819377041,0.96868376,3139.3,3138.5,3.18620876]
[1767819377763,0.96868376,3139.3,3138.5,6.37244422]
[1767819377934,0.96868376,3139.3,3138.5,7.09368864]
[1767819378744,0.96868376,3139.3,3139.0,0.00100101]
[1767819380794,0.001,3139.6,3139.0,0.54526249]
[1767819381160,0.96968376,3139.6,3139.0,0.00100101]
[1767819383191,0.96868376,3139.5,3139.0,0.00100101]
[1767819384396,0.96868376,3139.4,3139.0,0.00100101]
[1767819384766,0.96868376,3139.4,3139.0,2.02e-06]
[1767819391599,0.001,3139.1,3139.0,2.02e-06]
[1767819393498,0.97199964,3139.1,3139.0,2.02e-06]
[1767819393707,0.97199964,3139.1,3138.4,0.002]
[1767819393878,0.97099964,3138.9,3138.4,0.002]
[1767819394202,0.97099964,3138.9,3138.4,3.18831914]
[1767819394499,0.97099964,3138.9,3138.4,0.002]
[1767819395205,0.73431266,3139.0,3138.4,0.54626148]
[1767819395407,0.97199964,3139.1,3138.4,0.54626148]
[1767819398332,0.97199964,3139.1,3138.4,3.73253801]
[1767819398509,0.97199964,3139.1,3138.4,0.54626148]
[1767819398705,0.97099964,3139.0,3138.4,0.002]
[1767819398909,0.97099964,3138.9,3138.4,0.002]
[1767819402606,0.97099964,3138.8,3138.4,0.002]
[1767819403227,0.97099964,3138.8,3138.3,0.002]
[1767819403713,0.97199964,3138.8,3138.3,0.002]
[1767819407320,0.001,3138.8,3138.3,0.54626148]
[1767819407522,0.97199964,3138.8,3138.3,0.55560626]
[1767819407718,0.97199964,3138.8,3138.3,0.00100101]
[1767819411949,0.97099964,3138.7,3137.9,0.002]
[1767819412545,0.001,3138.8,3138.1,3.1866123]
[1767819412748,0.001,3138.8,3138.2,0.43286552]
[1767819412946,0.001,3138.8,3138.3,0.43286552]
[1767819414175,0.001,3138.8,3138.4,0.43286552]
[1767819414392,0.033,3138.8,3138.4,0.43286552]
[1767819414540,1.00399964,3138.8,3138.3,3.18637915]
[1767819414742,1.00399964,3138.8,3138.2,3.5484184]
[1767819415243,0.001,3138.5,3138.3,3.18640846]
[1767819415444,0.001,3138.5,3138.3,3.94350531]
[1767819417370,0.001,3138.5,3138.3,3.94351156]
[1767819417773,0.001,3138.5,3138.3,0.75709685]
[1767819418455,0.001,3138.5,3138.3,3.94352444]
[1767819418776,1.00399964,3138.8,3138.3,4.37638996]
[1767819418777,0.033,3138.8,3138.3,4.37638996]
[1767819418971,1.00399964,3138.8,3138.3,3.94352444]
[1767819420473,1.00399964,3138.8,3138.3,3.94347434]
[1767819420655,0.033,3138.8,3138.5,0.43286552]
[1767819421176,0.033,3138.8,3138.4,0.39434743]
[1767819422174,0.93501218,3138.8,3138.4,0.39434743]
[1767819422381,0.93501218,3138.8,3138.2,4.02252018]
[1767819422776,0.93501218,3138.8,3138.1,3.18656122]
[1767819422978,0.93501218,3138.8,3138.2,3.18651646]
[1767819424485,0.93501218,3138.8,3138.1,3.18659129]
[1767819425072,0.93501218,3138.8,3138.0,4.02270456]
[1767819425281,0.93501218,3138.8,3138.0,7.2094477]
[1767819425872,0.93501218,3138.8,3138.1,0.43286552]
[1767819426598,0.033,3138.8,3138.3,0.43286552]
[1767819426890,0.001,3138.5,3138.3,0.43286552]
[1767819427081,0.033,3138.8,3138.5,0.43286552]
[1767819427773,0.033,3138.8,3138.3,0.43186552]
[1767819428654,0.93501218,3138.8,3138.2,3.18654005]
[1767819429585,0.93501218,3138.8,3138.2,4.02252369]
[1767819429952,0.93501218,3138.8,3138.2,4.45438921]
[1767819430447,0.033,3138.8,3138.3,3.61828356]
[1767819430876,0.033,3138.8,3138.3,0.43186552]
[1767819431284,0.93501218,3138.8,3138.2,4.02247893]
[1767819432585,0.93501218,3138.8,3138.1,0.43186552]
[1767819432884,0.93501218,3138.8,3137.9,0.002]
[1767819432885,0.90201218,3138.7,3137.9,0.002]
[1767819433094,0.90201218,3138.6,3137.9,0.002]
[1767819435011,0.90201218,3138.4,3137.9,0.002]
[1767819437680,0.90201218,3138.3,3137.9,0.002]
[1767819438613,0.90201218,3138.3,3138.2,0.00100101]
[1767819438812,0.90201218,3138.2,3137.9,0.002]
[1767819443423,0.90201218,3138.2,3137.8,0.002]
[1767819443624,0.90201218,3138.2,3137.6,3.18515914]
[1767819443827,0.90201218,3138.1,3137.5,0.838]
[1767819444021,0.90201218,3138.1,3137.5,0.002]
[1767819444551,0.90201218,3138.0,3137.5,3.18924449]
[1767819445069,0.90201218,3138.0,3137.5,0.002]
[1767819445270,0.90201218,3138.0,3137.5,3.18923284]
[1767819445568,0.90201218,3138.0,3137.5,0.002]
[1767819448772,0.90001219,3138.0,3137.5,0.002]
[1767819450664,0.90001219,3138.0,3137.8,0.00100101]
[1767819453575,0.97976359,3138.2,3137.8,0.00100101]
[1767819453875,1.39638406,3138.2,3137.8,0.00100101]
[1767819454572,0.032,3138.0,3137.8,0.00100101]
[1767819457187,0.032,3138.0,3137.8,3.18794727]
[1767819457391,0.97976359,3138.4,3137.8,3.62181278]
[1767819457754,0.001,3138.5,3137.9,0.43386551]
[1767819457987,0.001,3138.5,3138.1,0.43386551]
[1767819459382,3.18667613,3139.1,3138.3,3.62030292]
[1767819459383,0.97976359,3139.0,3138.3,3.62030292]
[1767819460088,0.97976359,3139.0,3138.3,4.45630292]
[1767819461885,0.97976359,3139.0,3138.3,7.64274143]
[1767819462060,0.97976359,3139.0,3138.3,4.45630292]
[1767819462260,0.97976359,3139.0,3138.4,0.43386551]
[1767819462655,0.001,3138.7,3138.4,0.43386551]
[1767819462896,0.97976359,3139.0,3138.4,0.43386551]
[1767819463194,0.001,3139.1,3138.4,0.43386551]
[1767819463361,0.97976359,3139.4,3138.8,0.43386551]
[1767819463560,0.97976359,3139.4,3138.6,0.43386551]
[1767819464171,0.97976359,3139.3,3138.6,0.43386551]
[1767819464396,0.97976359,3139.3,3138.5,3.18623546]
[1767819465281,0.97976359,3139.2,3138.4,0.836]
[1767819465492,0.97976359,3139.2,3138.4,4.02232601]
[1767819465693,0.73503568,3139.3,3138.5,0.43386551]
[1767819465863,0.97976359,3139.4,3138.5,0.43386551]
[1767819467487,0.97976359,3139.4,3138.6,3.61999945]
[1767819468385,0.97976359,3139.4,3138.6,6.80613339]
[1767819468862,0.97976359,3139.4,3138.6,3.61999945]
[1767819469261,0.97976359,3139.4,3138.6,6.80613339]
[1767819469685,0.97976359,3139.4,3138.6,7.57034673]
[1767819470395,1.13926359,3139.4,3138.6,4.38421279]
[1767819473694,0.97976359,3139.3,3138.6,4.38421279]
[1767819473899,0.97976359,3139.3,3138.6,7.57034673]
[1767819474394,0.97976359,3139.3,3138.6,4.38421279]
[1767819475302,0.97976359,3139.3,3138.9,0.002]
[1767819475704,0.001,3139.1,3138.9,0.002]
[1767819476905,0.97976359,3139.5,3138.9,0.43586551]
[1767819477109,0.001,3139.8,3139.0,0.95680984]
[1767819477323,0.97976359,3140.0,3139.1,0.17948098]
[1767819477484,0.97976359,3140.0,3139.0,0.836]
[1767819477485,0.97976359,3139.9,3139.0,0.836]
[1767819478168,0.97976359,3139.9,3139.1,3.18562645]
[1767819478405,0.97976359,3139.8,3139.0,4.97848684]
[1767819478609,0.97976359,3139.8,3138.9,0.002]
[1767819478810,0.97976359,3139.8,3138.9,0.838]
[1767819479116,0.97976359,3139.8,3138.9,4.98063057]
[1767819480278,0.97976359,3139.6,3138.9,0.002]
[1767819480684,1.81576359,3139.6,3138.5,0.002]
[1767819480920,0.97976359,3139.4,3138.7,0.95680984]
[1767819481076,3.18493891,3139.8,3139.0,0.95680984]
[1767819481077,0.97976359,3139.8,3139.0,0.95680984]
[1767819481275,0.97976359,3139.7,3139.0,0.93834951]
[1767819481503,0.97976359,3139.5,3138.5,3.18814566]
[1767819481808,0.97976359,3139.5,3138.5,0.002]
[1767819482014,0.97976359,3139.5,3138.5,3.18817934]
[1767819482315,0.91316705,3139.4,3138.5,4.14294502]
[1767819483224,4.98785686,3139.9,3138.5,4.14294502]
[1767819483225,1.33279825,3140.3,3138.6,0.95476568]
[1767819483392,0.91316705,3140.1,3138.7,0.95476568]
[1767819483590,0.91316705,3140.1,3138.9,0.95476568]
[1767819484498,0.91316705,3139.9,3139.1,0.95476568]
[1767819484702,0.91316705,3139.9,3139.0,3.18572793]
[1767819484899,0.91316705,3139.9,3139.0,4.14049361]
[1767819485423,0.91316705,3139.9,3138.8,0.95476568]
[1767819485902,0.91316705,3139.9,3138.9,3.18582362]
[1767819486099,0.91316705,3139.9,3139.0,0.95476568]
[1767819486928,0.91316705,3139.9,3139.1,4.14039213]
[1767819487526,0.91316705,3139.9,3139.2,0.95476568]
[1767819487923,0.91316705,3139.8,3139.0,4.14046091]
[1767819488102,0.91316705,3139.7,3138.9,3.18778733]
[1767819488307,0.91316705,3139.5,3138.9,3.18778733]
[1767819489007,0.001,3139.6,3139.0,0.95476568]
[1767819489199,0.001,3139.6,3139.2,0.95476568]
[1767819490324,0.001,3139.6,3139.1,0.41425951]
[1767819490694,6.36820988,3140.6,3139.3,0.95476568]
[1767819490894,0.91316705,3140.4,3139.3,0.95476568]
[1767819491238,0.91316705,3140.2,3139.3,0.95476568]
[1767819493411,0.91316705,3140.0,3139.3,0.95476568]
[1767819495734,0.91316705,3139.9,3139.3,0.95476568]
[1767819496234,0.91316705,3139.9,3139.0,4.14044122]
[1767819496407,0.91316705,3139.8,3139.0,0.95476568]
[1767819496807,0.91316705,3139.8,3138.9,0.95676568]
[1767819497519,0.91316705,3139.8,3138.9,0.002]
[1767819498123,0.91316705,3139.6,3138.9,0.002]
[1767819499524,0.91316705,3139.4,3138.9,0.002]
[1767819500305,0.91316705,3139.3,3138.9,0.002]
[1767819502041,0.91316705,3139.2,3138.6,0.836]
[1767819503197,0.91316705,3139.2,3138.6,1.79076568]
[1767819503450,0.91316705,3139.2,3138.6,0.95476568]
[1767819503748,0.91316705,3139.2,3138.5,3.18818446]
[1767819504307,0.91416705,3139.6,3138.6,0.98662701]
[1767819504508,0.001,3139.6,3138.6,0.98662701]
[1767819505165,0.91316705,3139.5,3138.6,0.98662701]
[1767819505454,0.001,3139.6,3138.8,0.95476568]
[1767819506427,0.001,3139.6,3138.9,4.14059511]
[1767819506655,0.91416705,3139.6,3138.9,4.14059511]
[1767819506813,0.91416705,3139.6,3138.7,5.7759096]
[1767819507017,0.91416705,3139.6,3138.7,4.1407426]
[1767819507213,0.91416705,3139.6,3138.8,0.95476568]
[1767819507452,0.91416705,3139.6,3138.9,0.95476568]
[1767819507827,0.91416705,3139.6,3138.7,3.18598107]
[1767819508269,0.91416705,3139.6,3138.7,0.95476568]
[1767819508473,0.91316705,3139.4,3138.7,4.95535727]
[1767819508742,3.18522057,3139.5,3138.8,0.95476568]
[1767819509288,0.91316705,3139.5,3138.8,0.95476568]
[1767819509468,0.91316705,3139.5,3138.7,4.00059159]
[1767819509656,0.91316705,3139.5,3138.7,4.95535727]
[1767819509857,0.91316705,3139.5,3138.5,0.002]
[1767819509858,0.91316705,3139.4,3138.5,0.002]
[1767819510261,0.91316705,3139.4,3138.5,0.95676568]
[1767819510581,0.91316705,3139.2,3138.5,0.002]
[1767819510785,0.91316705,3139.2,3138.5,0.95676568]
[1767819510956,0.91316705,3139.2,3138.5,0.002]
[1767819511160,0.91316705,3139.1,3138.5,0.002]
[1767819511781,0.91316705,3139.2,3138.5,0.95676568]
[1767819512033,0.97276465,3139.1,3137.8,0.00100101]
[1767819512160,0.97276465,3138.7,3137.8,0.9620345]
[1767819512347,0.97276465,3138.7,3137.8,0.73461239]
[1767819512679,0.97276465,3138.6,3137.8,0.00100101]
[1767819513181,0.97276465,3138.6,3137.9,0.96103349]
[1767819513977,0.97276465,3138.6,3137.8,4.14897323]
[1767819514279,0.97276465,3138.6,3137.9,0.96103349]
[1767819514585,1.7072434,3138.6,3137.9,0.96103349]
[1767819514962,0.73447875,3138.6,3138.0,0.96103349]
[1767819515163,3.18552497,3139.2,3138.2,0.96103349]
[1767819516862,3.30012497,3139.2,3138.4,0.96103349]
[1767819517944,4.98785686,3139.8,3138.2,3.1864898]
[1767819517945,0.97276465,3140.3,3139.0,0.80203349]
[1767819518144,0.836,3139.5,3139.1,0.94257316]
[1767819518776,0.836,3139.5,3139.1,4.12818148]
[1767819522284,0.836,3139.5,3139.2,0.96103349]
[1767819522685,4.1574137,3140.1,3139.2,0.96103349]
[1767819522885,0.836,3139.5,3139.2,0.96103349]
[1767819524557,0.836,3139.5,3139.2,4.14654346]